Workbook

Sheet Navigation
A1: Produktgruppe | B1: Untergruppe | C1: Produkt | D1: Link (in dieser Arbeitsmappe)
A2: Backprodukt | B2: Fleischprodukt | C2: Fleischkäse | D2: Leberkäse
A3: Backprodukt | B3: Fleischprodukt | C3: Fleischkäse | D3: Fleischkäse ohne Cutter
A4: Bratwurst roh | B4: Fleischprodukt | C4: Bratwurst Walter | D4: Bratwurst Walter
A5: Bratwurst roh | B5: Fleischprodukt | C5: Bratwürstel frei nach Andi Lang | D5: Bratwürstel
A6: Bratwurst roh | B6: Fleischprodukt | C6: Fränkische Bratwurst | D6: Fränkische Bratwurst
A7: Bratwurst, roh | B7: Fleischprodukt | C7: Thüringer Bratwurst | D7: Thüringer Bratwurst
A8: Brühwurst | B8: Aufschnittwurst | C8: Mortadella | D8: Mortadella
A9: Brühwurst | B9: Aufschnittwurst | C9: Mortadella 2 | D9: Mortadella 2 mit Grundbrät
A10: Brühwurst | B10: Fleischprodukt | C10: Grundbrät für Aufschnitt | D10: Aufschnitt-Grundbrät
A11: Brühwurst | B11: Fleischprodukt | C11: Kalbs-Weißwurst | D11: Kalbs-Weißwurst
A12: Brühwurst | B12: Fleischprodukt | C12: Kümmelfleisch | D12: Kümmelfleisch
A13: Brühwurst | B13: Fleischprodukt | C13: Münchner Weißwurst | D13: Münchner Weißwurst
A14: Brühwurst | B14: Fleischprodukt | C14: Münchner Weißwurst (Kalb/Schwein) | D14: Weißwurst gemischt mit Emulsion
A15: Brühwurst | B15: Fleischprodukt | C15: Nürnberger Rostbratwürstel | D15: Nürnberger Rostbratwürste
A16: Brühwurst | B16: Fleischprodukt | C16: Weißwurst gemischt (Kalb/Schwein) | D16: Weißwurst gemischt (K/S)
A17: Brühwurst | B17: Fleischprodukt | C17: Weißwurst Münchner Art (Schwein) | D17: Weißwurst Münchner Art
A18: Brühwurst | B18: Streichwurst | C18: Feine Leberstreichwurst 1 | D18: Feine Leberstreichwurst
A19: Brühwurst | B19: Streichwurst | C19: Feine Leberstreichwurst mit Schnittlauch | D19: Feine Leberstreichwurst 2
A20: Brühwurst | B20: Streichwurst | C20: Kalbsleberstreichwurst, fein | D20: Feine Kalbsleberstreichwurst
A21: Kochwurst | B21: Fleischprodukt | C21: Blutwurst I | D21: Blutwurst I
A22: Rohwurst | B22: Hartwurst | C22: Chorizo | D22: Chorizo
A23: Rohwurst | B23: Hartwurst | C23: Salami | D23: Salami
A24: Rohwurst | B24: Hartwurst | C24: Salsiccia di Cinghiale crudo | D24: Salsiccia Cinghiale
A25: Rohwurst | B25: Hartwurst | C25: Ungarische Salami | D25: Ungarische Salami
A26: Rohwurst | B26: Streichwurst | C26: Zwiebelmettwurst | D26: Zwiebelmettwurst
A27: Selchware | B27: Fleischprodukt | C27: Käsekrainer | D27: Käsekrainer
A28: Terrine | B28: Terrine | C28: Dänische Leberterrine | D28: Dänische Leberterrine

Sheet Weißwurst Münchner Art
B1: Zutaten | C1: Prozentualer Anteil | D1: Ansatz in kg | E1: Menge in kg | F1: Tag 1 Vorbereitung | G1: Tag 2 Produktion
A2: Fleisch | B2: Schweineschulter, mageres Kleinfleisch | C2: 50 | D2: 1 | E2: =C2*$D$2/100 -> 0.5 | G2: Alles getrennt faschieren mit 3mm-Scheibe, auch die Zwiebel (gem. mit Fleisch), dann kühlen auf 0°
B3: Speck | C3: 30 | E3: =C3*$D$2/100 -> 0.3
B4: Schwartenemulsion | C4: 20 | E4: 0.2 | F4: Kochen, mit etwas Sud pürieren, kühlen
B5: Fleischanteil gesamt | C5: =SUM(C2:C4) -> 100 | E5: =SUM(E2:E4) -> 1 | G5: Faschierte Schulter und Emulsion mit den Gewürzen cuttern, halbe Schüttung zugeben, weitercuttern.
A6: Wasser | B6: Eis (Schüttung) | C6: 30 | E6: 0.3 | F6: =_xlfn.TEXTJOIN(" ",,"Ergibt insgesamt:",E17, "kg") -> Ergibt insgesamt: 1,373 kg
A7: Gewürze | C7: Angabe in g/kg | E7: Menge in g
B8: Kochsalz | C8: 20 | E8: =C8*$D$2 -> 20 | G8: Speck zugeben, cuttern. Zweite Häfte der Schüttung zugeben, cuttern bis 12°C. zuletzt Petersil untermengen.
B9: Pfeffer, weiß | C9: 4 | E9: =C9*$D$2 -> 4
B10: Ingwer | C10: 2 | E10: 2
B11: Muskat | C11: 3 | E11: 3 | G11: Füllen in Därme 28/30, nicht zu prall
B12: Brätphosphat | C12: 4 | E12: 4
B13: Zwiebel, frisch | C13: 20 | E13: 20 | G13: Abdrehen und Brühen bei 78-80° für 30 Minuten
B14: Petersil, gehackt | C14: 20 | E14: 20
B15: Zitronenschale, gerieben | C15: nach Geschmack | E15: =SUM(E8:E14)/1000 -> 0.073 | G15: Abschrecken in kaltem Wasser, kühlen.
A17: Ausbeute bei Grundansatz(1): 1,37 kg | E17: =E5+E6+SUM(E8:E14)/1000 -> 1.373 | F17: Ansatz erforderlich
A18: Erforderlicher Ansatz für die gewünschte Ausbeute in kg: | E18: 5.2 | F18: =E18/1.373 -> 3.787327021

Sheet Weißwurst KS mit Emulsion
B1: Zutaten | C1: Prozentualer Anteil | D1: Ansatz in kg | E1: Menge in kg | F1: Tag 1 Vorbereitung | G1: Tag 2 Produktion
A2: Fleisch | B2: Schweineschulter, mageres Kleinfleisch | C2: 25 | D2: 1 | E2: =C2*$D$2/100 -> 0.25 | G2: Alles getrennt faschieren mit 3mm-Scheibe, auch die Zwiebel (gem. mit Fleisch), dann kühlen auf 0°
B3: Kalbfleisch sehnenfrei | C3: 25 | E3: =C3*$D$2/100 -> 0.25
B4: Speck | C4: 30 | E4: =C4*$D$2/100 -> 0.3
B5: Schwartenemulsion (mit Lorbeer und Piment) | C5: 20 | E5: 0.2 | F5: Kochen, mit etwas Sud pürieren, kühlen
B6: Fleischanteil gesamt | C6: =SUM(C2:C5) -> 100 | E6: =SUM(E2:E5) -> 1 | G6: Faschierte Schulter und Emulsion mit den Gewürzen cuttern, halbe Schüttung zugeben, weitercuttern.
A7: Wasser | B7: Eis (Schüttung) | C7: 30 | E7: 0.3 | F7: =_xlfn.TEXTJOIN(" ",,"Ergibt insgesamt:",E18, "kg") -> Ergibt insgesamt: 1,373 kg
A8: Gewürze | C8: Angabe in g/kg | E8: Menge in g
B9: Kochsalz | C9: 20 | E9: =C9*$D$2 -> 20 | G9: Speck zugeben, cuttern. Zweite Häfte der Schüttung zugeben, cuttern bis 12°C. zuletzt Petersil untermengen.
B10: Pfeffer, weiß | C10: 4 | E10: =C10*$D$2 -> 4
B11: Ingwer | C11: 2 | E11: 2
B12: Muskat | C12: 3 | E12: 3 | G12: Füllen in Därme 28/30, nicht zu prall
B13: Brätphosphat | C13: 4 | E13: 4
B14: Zwiebel, frisch | C14: 20 | E14: 20 | G14: Abdrehen und Brühen bei 78-80° für 30 Minuten
B15: Petersil, gehackt | C15: 20 | E15: 20
B16: Zitronenschale, gerieben | C16: nach Geschmack | E16: =SUM(E9:E15)/1000 -> 0.073 | G16: Abschrecken in kaltem Wasser, kühlen.
A18: Ausbeute bei Grundansatz(1): 1,37 kg | E18: =E6+E7+SUM(E9:E15)/1000 -> 1.373 | F18: Ansatz erforderlich
A19: Erforderlicher Ansatz für die gewünschte Ausbeute in kg: | E19: 4 | F19: =E19/1.373 -> 2.913328478

Sheet Kalbs-Weißwurst
B1: Zutaten | C1: Prozentualer Anteil | D1: Ansatz in kg | E1: Menge in kg | F1: Tag 1 Vorbereitung | G1: Tag 2 Produktion
A2: Fleisch | B2: Kalbsschulter | C2: 42.5 | D2: 1 | E2: =C2*$D$2/100 -> 0.425 | G2: Alles getrennt faschieren mit 3mm-Scheibe, dann kühlen auf 0°
B3: Speck | C3: 32.5 | E3: =C3*$D$2/100 -> 0.325
B4: Eis (Schüttung) | C4: 25 | E4: =C4*$D$2/100 -> 0.25
B5: Ansatz gesamt | C5: =SUM(C2:C4) -> 100 | E5: =SUM(E2:E4) -> 1 | G5: Vorcuttern des Fleischs mit halber Schüttung und Gewürzen
A6: Wasser | F6: =_xlfn.TEXTJOIN(" ",,"Ergibt insgesamt:",E16, "kg") -> Ergibt insgesamt: 1,047 kg
A7: Gewürze | C7: Angabe in g/kg | E7: Menge in g
B8: Kochsalz | C8: 19 | E8: =C8*$D$2 -> 19 | G8: Speck zugeben, cuttern. Zweite Häfte der Schüttung zugeben, cuttern bis 12°C. zuletzt Petersil untermengen.
B9: Pfeffer, weiß | C9: 3 | E9: =C9*$D$2 -> 3
B10: Macis | C10: 1 | E10: 1 | G10: Füllen in Därme 28/30, nicht zu prall
B11: Brätphosphat | C11: 3 | E11: 3
B12: Senfkörner, gemahlen | C12: 1 | E12: 1 | G12: Abdrehen und Brühen bei 78-80° für 30 Minuten
B13: Petersil, gehackt | C13: 20 | E13: 20
B14: Zitronenschale, gerieben | C14: nach Geschmack | E14: =SUM(E8:E13)/1000 -> 0.047 | G14: Abschrecken in kaltem Wasser, kühlen.
A16: Ausbeute bei Grundansatz(1): 1,00 kg | E16: =E5+SUM(E8:E13)/1000 -> 1.047 | F16: Ansatz erforderlich
E17: 1 | F17: =E17/1.047 -> 0.9551098376

Sheet Weißwurst gemischt
B1: Zutaten | C1: Prozentualer Anteil | D1: Ansatz in kg | E1: Menge in kg | G1: Tag 2 Produktion
A2: Fleisch | B2: Schweineschulter, mageres Kleinfleisch | C2: 35 | D2: 3.06 | E2: =C2*$D$2/100 -> 1.071 | G2: Fleisch und Speck getrennt faschieren mit 3mm-Scheibe, auch die Zwiebel (gem. mit Fleisch), dann kühlen auf 0°
B3: Kalbsschulter | C3: 35 | E3: =C3*$D$2/100 -> 1.071
B4: Speck | C4: 30 | E4: 0.918
B5: Fleischanteil gesamt | C5: =SUM(C2:C4) -> 100 | E5: =SUM(E2:E4) -> 3.06 | G5: Faschiertes Fleisch mit den Gewürzen cuttern, halbe Schüttung zugeben, weitercuttern.
A6: Wasser | B6: Eis (Schüttung) | C6: 25 | E6: 0.765 | F6: =_xlfn.TEXTJOIN(" ",,"Ergibt insgesamt:",E17, "kg") -> Ergibt insgesamt: 4,00554 kg
A7: Gewürze | C7: Angabe in g/kg | E7: Menge in g
B8: Kochsalz | C8: 18 | E8: =C8*$D$2 -> 55.08 | G8: Speck zugeben, cuttern. Zweite Häfte der Schüttung zugeben, cuttern bis 12°C. zuletzt Petersil untermengen.
B9: Pfeffer, weiß | C9: 4 | E9: =C9*$D$2 -> 12.24
B10: Ingwer | C10: 2 | E10: 6.12
B11: Macis | C11: 2 | E11: 6.12 | G11: Füllen in Därme 28/30, nicht zu prall
B12: Brätphosphat | C12: 3 | E12: 9.18
B13: Zwiebel, frisch | C13: 20 | E13: 61.2 | G13: Abdrehen und Brühen bei 78-80° für 30 Minuten
B14: Petersil, gehackt | C14: 10 | E14: 30.6
B15: Zitronenschale, gerieben | C15: nach Geschmack (1-2) | E15: =SUM(E8:E14)/1000 -> 0.18054 | G15: Abschrecken in kaltem Wasser, kühlen.
A17: Ausbeute bei Grundansatz(1): 1,31 kg | E17: =E5+E6+SUM(E8:E14)/1000 -> 4.00554 | F17: Ansatz erforderlich
A18: Erforderlicher Ansatz für die gewünschte Ausbeute in kg: | E18: 4 | F18: =E18/1.309 -> 3.055767762

Sheet Münchner Weißwurst
B1: Zutaten | C1: Prozentualer Anteil | D1: Ansatz | E1: Menge in kg | F1: Vorbereitung | G1: Produktion
A2: Fleisch | B2: Jung-Rindfleisch entsehnt mager R2 | C2: 40 | D2: 1 | E2: =C2*$D$2/100 -> 0.4 | F2: Kopffleisch bei 80-90° vorgaren. Alles wolfgerecht vorschneiden, vorkühlen | G2: getrennt faschieren durch 3mm-Scheibe
B3: Speckabschnitte S9 | C3: 25 | E3: =C3*$D$2/100 -> 0.25
B4: Kalbskopffleisch, vorgegart | C4: 15 | E4: 0.15
B5: Schüttung | C5: 20 | E5: 0.2 | G5: zuerst Fleisch mit Gewürzen und der halben Schüttung cuttern, dann Speck. Kopffleisch und restliche Schüttung dazu, bis 12° cuttern.
B6: Masse gesamt | C6: =SUM(C2:C5) -> 100 | D6: % | E6: =C6*$D$2/100 -> 1
A7: Gewürze | C7: Angabe in g/kg | E7: Menge in g
B8: Kochsalz | C8: 18 | E8: =C8*$D$2 -> 18 | G8: Füllen in Schweinedarm 28/30, abdrehen und bei 70° 25 Minuten brühen.
B9: Phosphat | C9: 3 | E9: =C9*$D$2 -> 3
B10: Pfeffer, gemahlen | C10: 2 | E10: 2
B11: Macis, gemahlen | C11: 1 | E11: 1
B12: Zitronenpulver | C12: 1 | E12: 1
B13: Petersil | C13: 10 | E13: 10
E14: =SUM(E8:E13) -> 35
A15: Ausbeute bei Grundansatz(1): 1,04 kg | E15: =SUM(E2:E5)+SUM(E8:E13)/1000 -> 1.035 | F15: Ansatz erforderlich
A16: Erforderlicher Ansatz für die gewünschte Ausbeute in kg: | E16: 4 | F16: =E16/1.04 -> 3.846153846

Sheet Leberkäse
B1: Zutaten | C1: Prozentualer Anteil | D1: Ansatz | E1: Menge in kg | F1: Tag 1 Vorbereitung | G1: Tag 2 Produktion
A2: Fleisch | B2: Schweinefleisch | C2: 43 | D2: 1 | E2: =C2*$D$2/100 -> 0.43 | F2: Fleisch und Speck in Streifen schneiden, mit den Gewürzen vermengen, kühlen auf 0°
B3: Rindfleisch oder Wildschwein | C3: 32 | E3: =C3*$D$2/100 -> 0.32
B4: Speck | C4: 25 | E4: =C4*$D$2/100 -> 0.25
B5: Fleischanteil gesamt | C5: =SUM(C2:C4) -> 100 | E5: =SUM(E2:E4) -> 1 | G5: Fleisch gemischt faschieren, Speck extra.
A6: Wasser | B6: Eis (Schüttung) | C6: 30 | E6: 0.3 | F6: =_xlfn.TEXTJOIN(" ",,"Ergibt insgesamt:",E24, "kg") -> Ergibt insgesamt: 1,4283 kg
A7: Gewürze | C7: Angabe in g/kg | E7: Menge in g
B8: Pökelsalz | C8: 20 | E8: =C8*$D$2 -> 20 | G8: Fleisch cuttern, erste Hälfte Schüttung zugeben.
B9: Kümmel | C9: 2.5 | E9: =C9*$D$2 -> 2.5
B10: Ingwer | C10: 1.5 | E10: 1.5
B11: Paprika, scharf | C11: 4 | E11: 4 | G11: Speck zugeben, weitercuttern, Kartoffelmehl und 2. Hälfte Schüttung zugeben, bis 12° cuttern
B12: Brätphosphat | C12: 4 | E12: 4
B13: Zwiebel, Pulver | C13: 18 | E13: 18 | G13: Leberkäswanne mit Öl ausstreichen, Masse möglichst luftrei einfüllen. Ränder etwas niederdrücken (Spatel), die Oberfläche kreuzweise einritzen.
B14: Knoblauch, Granulat | C14: 18 | E14: 18
B15: Kardamom, Pulver | C15: 1.8 | E15: 1.8 | G15: Im Wasserbad bei 200° anbraten, bei 160° fertiggaren. Entweder mit Kerntemperatur auf mindestens 70° garen, oder solange, bis der Leberkäse die gewünschte Bräunung aufweist, aufgeht und Risse bekommt. Alternativ: bei 80° für 20 Minuten vorgaren, dann bei 120° in etwa 2 Stunden fertiggaren, ggf. mit Oberhitze nachbräunen.
B16: Galgant, Pulver | C16: 1.3 | E16: 1.3
B17: Koriander, gemahlen | C17: 1.5 | E17: 1.5
B18: Piment, gemahlen | C18: 1 | E18: 1
B19: Muskatblüte, gemahlen | C19: 1 | E19: 1
B20: Pfeffer, weiß | C20: 2.2 | E20: 2.2
B21: Umrötungshilfsmttel (Allrosa) | C21: 1.5 | E21: 1.5
B22: Erdäpfelstärke, 2. Tag; siehe Produktion | C22: 50 | E22: 50
A24: Ausbeute bei Grundansatz(1): 1,43 kg | E24: =SUM(E2:E4)+E6+SUM(E8:E22)/1000 -> 1.4283 | F24: Ansatz erforderlich
A25: Erforderlicher Ansatz für die gewünschte Ausbeute in kg: | E25: 2 | F25: =E25/1.43 -> 1.398601399
E29: =SUM(E8:E22)/1000 -> 0.1283

Sheet Fleischkäse ohne Cutter
B1: Zutaten | C1: Prozentualer Anteil | D1: Ansatz | E1: Menge in kg | F1: Tag 1 Vorbereitung | G1: Tag 2 Produktion
A2: Fleisch | B2: Schweineschulter | C2: 50 | D2: 1 | E2: =C2*$D$2/100 -> 0.5 | F2: Fleisch und Speck in Streifen schneiden, mit den Gewürzen vermengen, 24 h kühlen auf 0° | G2: Alternativ: für eine Stunde im Tiefkühler anfrieren.
B3: Schweinebacke | C3: 30 | E3: =C3*$D$2/100 -> 0.3
B4: Speck | C4: 20 | E4: =C4*$D$2/100 -> 0.2
B5: Fleischanteil gesamt | C5: =SUM(C2:C4) -> 100 | E5: =SUM(E2:E4) -> 1 | F5: =_xlfn.TEXTJOIN(" ",,"Ergibt insgesamt:",E22, "kg") -> Ergibt insgesamt: 1,298 kg | G5: Fleisch gemischt mit der Zwiebel mit 3mm-Scheibe faschieren, Speck zunächst separat. Alles ein 2. Mal faschieren.
A6: Wasser | B6: Eis (Schüttung) | C6: 22 | E6: 0.22
A7: Gewürze | C7: Angabe in g/kg | E7: Menge in g
B8: Pökelsalz | C8: 21 | E8: =C8*$D$2 -> 21 | G8: Alles in die Küchenmaschine umfüllen, Gewürze zugeben. Zunächst langsam, dann mit höherer Drehzahl mengen. Allmählich Schüttung zugeben.
B9: Pfeffer, weiß | C9: 4 | E9: =C9*$D$2 -> 4
B10: Knoblauchpulver | C10: 2 | E10: 2
B11: Ingwer | C11: 1 | E11: 1 | G11: Bis 12° mengen.
B12: Kardamom, Pulver | C12: 2 | E12: 2 | G12: Leberkäswanne mit Öl ausstreichen, Masse möglichst luftrei einfüllen. Ränder etwas niederdrücken (Spatel), die Oberfläche kreuzweise einritzen.
B13: Koriander, gemahlen | C13: 2 | E13: 2
B14: Muskat | C14: 2 | E14: 2
B15: Zwiebel, frisch | C15: 40 | E15: 40
B16: Brätphosphat | C16: 4 | E16: =C16*$D$2 -> 4 | G16: Im Ofen bei 80° 20 Minuten vorgaren, dann bei 120° etwa 2 Stunden fertiggaren bis zu ener Kerntemperatur von 68°. Zum Schluss die Oberfläche noch etwas bräunen, so erforderlich.
E17: 0
E18: 0
E19: 0
E20: 0
A22: Ausbeute bei Grundansatz(1): 1,30kg | E22: =SUM(E2:E4)+E6+SUM(E8:E20)/1000 -> 1.298 | F22: Ansatz erforderlich
A23: Erforderlicher Ansatz für die gewünschte Ausbeute in kg: | E23: 2 | F23: =E23/1.3 -> 1.538461538

Sheet Kümmelfleisch
B1: Zutaten | C1: Prozentualer Anteil | D1: Ansatz | E1: Menge in kg | F1: Vorbereitung | G1: Produktion
A2: Fleisch | B2: Schweineschulter, mageres Kleinfleisch | C2: 100 | D2: 1.7 | E2: =C2*$D$2/100 -> 1.7 | F2: In grobe Stücke schneiden | G2: Tag 1: mit NPS und Ascorbinsäure 10 Minuten in der Küchenmaschine durchmengen, dann luftfrei in ein Gefäß füllen, 24 h stehen lassen.
B3: Fleischanteil gesamt | C3: =SUM(C2:C2) -> 100 | E3: =SUM(E2:E2) -> 1.7 | G3: Tag 2: mit Gewürzen und evtl. etwas mehr Schüttung wieder 10 Minuten durchmengen, für weitere 24h kühlen (luftfrei)
A4: Wasser | B4: Eis (Schüttung) | C4: 20 | E4: =C4*$D$2/100 -> 0.34 | F4: =_xlfn.TEXTJOIN(" ",,"Ergibt insgesamt:",E15, "kg") -> Ergibt insgesamt: 2,11055 kg
B5: Gesamtausbeute, etwa | E5: =E3+E4 -> 2.04
A6: Gewürze | C6: Angabe in g/kg | E6: Menge in g
B7: Pökelsalz | C7: 22 | E7: =C7*$D$2 -> 37.4 | G7: Tag 3: in mit Folie ausgelgte Form luftfrei füllen, Folie zusammenschlagen, Überstände abschneiden. Bei 78° 3h garen; alternativ: in Foilie vakuumieren, binden.
B8: Ascorbinsäure | C8: 1.5 | E8: =C8*$D$2 -> 2.55
B9: Pfeffer | C9: 4 | E9: 6.8
B10: Ingwer | C10: 2 | E10: 3.4 | G10: Auskühlen lassen, zunächst in kaltem Wasser, dan im Kühlschrank.
B11: Kardamom | C11: 2 | E11: 3.4
B12: Kümmel, gestoßen | C12: 6 | E12: 10.2
B13: Brätphosphat | C13: 4 | E13: 6.8
A15: Ausbeute bei Grundansatz(1): 1,24 kg | E15: =SUM(E5)+SUM(E7:E13)/1000 -> 2.11055 | F15: Ansatz erforderlich
A16: Erforderlicher Ansatz für die gewünschte Ausbeute in kg: | E16: 2 | F16: =E16/1.24 -> 1.612903226

Sheet Blutwurst I
B1: Zutaten | C1: Prozentualer Anteil (grün) bzw. Standardwerte für Ansatz 1 | D1: Ansatz | E1: Menge in kg | F1: Vorbereitung | G1: Produktion, Temperaturverlauf farblich hervorgehoben | H1: Ansatz 24.2.2021
A2: Fleisch | B2: Sauschädel mit Schwarte | C2: 35 | D2: 1 | E2: =C2*$D$2/100 -> 0.35 | F2: Zerteilt mit Gewürzsäckchen und etwas Salz 20 Minuten im Druckkochtopf garen, leicht auskühlen lassen. Mageres Fleisch fein (3mm), Fettes mittelfein (5mm) faschieren. | G2: 1 Vorkochen im Drucktopf mit dem Gewürzsäckchen, Sud aufheben! | H2: 2.2
B3: Kleinfleisch | C3: 23 | E3: =C3*$D$2/100 -> 0.23 | H3: 1.1
B4: Schwarten | C4: 20 | E4: =C4*$D$2/100 -> 0.2 | H4: 1.1
B5: Speck | C5: 22 | E5: =C5*$D$2/100 -> 0.22 | F5: Kalt entweder händisch mittelfein würfeln oder durch sehr grobe Scheibe faschieren | G5: 2 Faschieren, Speckwürfel 5 Minuten blanchieren | H5: 1.1
B6: Fleischanteil gesamt, mit Blut | C6: =SUM(C2:C5) -> 100 | E6: =SUM(E2:E5)+E9 -> 1.21 | F6: =_xlfn.TEXTJOIN(" ",,"Ergibt insgesamt etwa:",E22, "kg") -> Ergibt insgesamt etwa: 1,52705882352941 kg
B7: Semmelbröckerl für Ansatz 1 | C7: 1.470588235 | E7: =C7*$D$2/10 -> 0.1470588235 | H7: 0.75
B8: Kochsud Richtwert!, eher nach Gefühl | C8: 1.7 | E8: =C8*$D$2/10 -> 0.17 | H8: =5/4 -> 1.25
A9: Blut | B9: Schweineblut für Ansatz 1 | C9: 21 | E9: 0.21 | H9: 1.2
A10: Gewürze | C10: Angaben, Vorschlag für Ansatz 1 | D10: Angabe in | E10: benötigte Mengen, ca.
B11: Lorbeerblatt | C11: 1 | D11: Stück | E11: =C11*$D$2 -> 1 | F11: Gewürzsäckchen, mit dem Fleisch kochen, dann entfernen. | G11: 3 Semmelbröckerl mit Kochsud gut anfeuchten, alle zerkleinerten Zutaten zugeben und mit dem Blut mischen | H11: 3
B12: Pfefferkörner | C12: 0.42 | D12: EL | E12: =C12*$D$2 -> 0.42 | H12: 25
B13: Pimentkörner | C13: 0.2 | D13: KL | E13: 0.2 | H13: 15
B14: Majoran | C14: 0.4 | D14: EL | E14: 0.4 | H14: 1.5
B15: Knoblauchzehen, leicht angedrückt | C15: 1 | D15: Stück | E15: 1 | H15: 3
B16: Zwiebel weiß | C16: 0.8 | D16: Stück | E16: 0.8 | F16: mittelfein schneiden und in etwas Fett (Schmalz) leicht anrösten | H16: 4
B17: Piment, gemahlen | C17: 0.2 | D17: EL | E17: 0.2 | H17: 1.5
B18: Majoran | C18: 0.2 | D18: Handvoll | E18: 0.2 | F18: Abschmecken nach perönlichem Gusto; Salzgehalt des Suds berücksichtigen! | G18: 4 Abschmecken | H18: 5
B19: Pfeffer, geschrotet oder aus Mühle | C19: 0.5 | D19: EL | E19: 0.5 | G19: 5 Füllen in Rinderseitlinge | H19: 4.5
B20: Salz | C20: 1 | D20: EL | E20: 1 | G20: 6 Brühen bei 80°, etwa 1 Stunde | H20: 150
H21: =SUM(H15:H20) -> 168
A22: Ausbeute bei Grundansatz(1): 1,53 kg | E22: =SUM(E6:E8) -> 1.527058824 | F22: Ansatz erforderlich | H22: =SUM(H2:H9)+SUM(H15:H20)/100 -> 10.38
A23: Erforderlicher Ansatz für die gewünschte Ausbeute in kg: | E23: 10.38 | F23: =E23/1.53 -> 6.784313725

Sheet Feine Leberstreichwurst
B1: Zutaten | C1: Prozentualer Anteil | D1: Ansatz | E1: Menge in kg | F1: Vorbereitung | G1: Produktionsschritte
A2: Fleisch | B2: Bauchfleisch | C2: 40 | D2: 1 | E2: =C2*$D$2/100 -> 0.4 | F2: Gemeinsam kochen,etwa 45 Minuten | G2: Faschieren mit 3mm-Scheibe, auch die Zwiebel (gem. mit Leber)
B3: Speck | C3: 30 | E3: =C3*$D$2/100 -> 0.3
B4: Zwiebel, siehe unten | F4: Leber in Streifen schneide, wässern. Gemeinam roh faschieren
B5: Leber | C5: 30 | E5: 0.3
B6: Fleischanteil gesamt | C6: =SUM(C2:C5) -> 100 | E6: =SUM(E2:E5) -> 1 | G6: Leber mit Pökelsalz aufschlagen (Schneebesen)
A7: Gewürze | C7: Angabe in g/kg | E7: Menge in g
B8: Pökelsalz | C8: 22 | E8: =C8*$D$2 -> 22 | G8: Fleisch noch warm faschieren, mit etwas Sud (etwa 150 ml bei Ansatz 1) die Maschine "ausspülen"
B9: Pfeffer | C9: 4 | E9: =C9*$D$2 -> 4
B10: Ingwer | C10: 3 | E10: 3
B11: Muskat | C11: 1 | E11: 1 | G11: Mischen, Gewürze zugeben und homogenisieren
B12: Piment | C12: 1 | E12: 1
B13: Zwiebel, frisch | C13: 60 | E13: 60
B14: Kardamom, Pulver | C14: 5 | E14: 5 | G14: In Sterildarm oder Gläser füllen, Würste 45 Minuten bei 85° brühen, Gläser bei 100° 2 Stunden sterilisieren.
A16: Ausbeute bei Grundansatz(1): 1,14 kg | E16: =SUM(E6)+SUM(E8:E14)/1000 -> 1.096 | F16: Ansatz erforderlich
A17: Erforderlicher Ansatz für die gewünschte Ausbeute in kg: | E17: 1 | F17: =E17/1.14 -> 0.8771929825

Sheet Kalbsleberstreichwurst
B1: Zutaten | C1: Prozentualer Anteil | D1: Ansatz | E1: Menge in kg | F1: Vorbereitung | G1: Produktionsschritte
A2: Fleisch | B2: Bauchfleisch | C2: 20 | D2: 1 | E2: =C2*$D$2/100 -> 0.2 | F2: Gemeinsam kochen,etwa 45 Minuten | G2: Faschieren mit 3mm-Scheibe, auch die Zwiebel (gem. mit Leber)
B3: Kalbsschulter | C3: 20 | E3: =C3*$D$2/100 -> 0.2
B4: Speck | C4: 30 | E4: =C4*$D$2/100 -> 0.3
B5: Zwiebel, siehe unten | F5: Leber in Streifen schneide, wässern. Gemeinam roh faschieren
B6: Leber | C6: 30 | E6: 0.3
B7: Fleischanteil gesamt | C7: =SUM(C2:C6) -> 100 | E7: =SUM(E2:E6) -> 1 | G7: Leber mit Pökelsalz aufschlagen (Schneebesen)
A8: Gewürze | C8: Angabe in g/kg | E8: Menge in g
B9: Pökelsalz | C9: 22 | E9: =C9*$D$2 -> 22 | G9: Fleisch noch warm faschieren, mit etwas Sud (etwa 150 ml bei Ansatz 1) die Maschine "ausspülen"
B10: Pfeffer S/W 1:1 | C10: 4 | E10: =C10*$D$2 -> 4
B11: Ingwer | C11: 3 | E11: 3
B12: Muskatblüte | C12: 1 | E12: 1 | G12: Mischen, Gewürze zugeben und homogenisieren
B13: Piment | C13: 1 | E13: 1
B14: Zwiebel, frisch | C14: 60 | E14: 60
A16: Ausbeute bei Grundansatz(1): 1,09 kg | E16: =SUM(E7)+SUM(E9:E14)/1000 -> 1.091 | F16: Ansatz erforderlich
A17: Erforderlicher Ansatz für die gewünschte Ausbeute in kg: | E17: 2 | F17: =E17/1.09 -> 1.834862385

Sheet Feine Leberstreichwurst 2
B1: Zutaten | C1: Prozentualer Anteil | D1: Ansatz | E1: Menge in kg | F1: Vorbereitung | G1: Produktionsschritte
A2: Fleisch | B2: Bauchfleisch | C2: 40 | D2: 1 | E2: =C2*$D$2/100 -> 0.4 | F2: Gemeinsam kochen,etwa 45 Minuten | G2: Faschieren mit 3mm-Scheibe, auch die Zwiebel (gem. mit Leber)
B3: Speck | C3: 30 | E3: =C3*$D$2/100 -> 0.3
B4: Zwiebel, siehe unten | F4: Gemeinam roh faschieren
B5: Leber | C5: 30 | E5: 0.3
B6: Fleischanteil gesamt | C6: =SUM(C2:C5) -> 100 | E6: =SUM(E2:E5) -> 1 | G6: Leber mit Pökelsalz aufschlagen (Schneebesen)
A7: Gewürze | C7: Angabe in g/kg | E7: Menge in g
B8: Pökelsalz | C8: 22 | E8: =C8*$D$2 -> 22 | G8: Fleisch noch warm faschieren, mit etwas Sud die Maschine "ausspülen"
B9: Pfeffer | C9: 4 | E9: =C9*$D$2 -> 4
B10: Ingwer | C10: 3 | E10: 3
B11: Muskat | C11: 1 | E11: 1 | G11: Mischen, Gewürze zugeben und homogenisieren, zuletzt Schnittlauch unterziehen.
B12: Piment | C12: 1 | E12: 1
B13: Zwiebel, frisch | C13: 60 | E13: 60
B14: Schnittlauch | C14: 50 | E14: 50 | G14: In Sterildarm oder Gläser füllen, Würste 45 Minuten bei 85° brühen, Gläser bei 100° 2 Stunden sterilisieren.
A16: Ausbeute bei Grundansatz(1): 1,14 kg | E16: =SUM(E6)+SUM(E8:E14)/1000 -> 1.141 | F16: Ansatz erforderlich
A17: Erforderlicher Ansatz für die gewünschte Ausbeute in kg: | E17: 1 | F17: =E17/1.14 -> 0.8771929825

Sheet Dänische Leberterrine
B1: Zutaten | C1: Prozentualer Anteil | D1: Ansatz | E1: Menge in kg | F1: Vorbereitung | G1: Produktionsschritte
A2: Fleisch | B2: Schweineleber | C2: 60 | D2: 1 | E2: =C2*$D$2/100 -> 0.6 | F2: Wolfgerecht schneiden | G2: Faschieren mit 3mm-Scheibe, auch die Zwiebel (gem. mit Leber).
B3: Speck | C3: 40 | E3: =C3*$D$2/100 -> 0.4
B4: Fleischanteil gesamt | C4: =SUM(C2:C3) -> 100 | E4: =SUM(E2:E3) -> 1
B5: Béchamel | G5: In üblicher Weise Béchamel herstellen, kurz verkochen, auskühlen lassen, dann Eier und pürierte Anchovis untermixen
B6: Butter (EL) | C6: 2 | E6: =C6*$D$2 -> 2
B7: Mehl (EL) | C7: 2 | E7: =C7*$D$2 -> 2
B8: Obers (ml) | C8: 2 | E8: =C8*$D$2*100 -> 200
B9: Suppe (ml) | C9: 1.5 | E9: =C9*$D$2*100 -> 150
B10: Ei | C10: 2 | E10: =C10*$D$2 -> 2
E11: =SUM(E8:E9) -> 350 | G11: Alles gut vermengen (Küchenmaschine)
A12: Gewürze | C12: Angabe in g/kg | E12: Menge in g
B13: Salz | C13: 20 | E13: =C13*$D$2 -> 20
B14: getrockneter grüner Pfeffer | C14: 2 | E14: =C14*$D$2 -> 2
B15: Pfeffer, schwarz | C15: 1 | E15: 1
B16: Ingwer | C16: 2 | E16: 2
B17: Nelke, gemahlen | C17: 1 | E17: 1 | G17: In mit Folie ausgelegte Kasten- oder Schinkenform füllen (luftfrei); alternativ: mit Speckscheiben auslegen.
B18: Piment | C18: 1 | E18: 1
B19: Zwiebel, frisch zerteilt (Stück) | C19: 1 | E19: 1
B20: Anchovisfilet, gewässert | C20: 2 | E20: 2 | G20: Im Wasserbad bei 80° 1:30 Stunde garen, auskühlen lassen.
A22: Ausbeute bei Grundansatz(1): 1,38 kg | E22: =SUM(E4)+SUM(E13:E20)/1000+(E11/1000) -> 1.38 | F22: Ansatz erforderlich
A23: Erforderlicher Ansatz für die gewünschte Ausbeute in kg: | E23: 1 | F23: =E23/1.38 -> 0.7246376812

Sheet Käsekrainer
B1: Zutaten | C1: Prozentualer Anteil | D1: Ansatz | E1: Menge in kg | F1: 1 | G1: Produktion
A2: Fleisch | B2: Schweineschulter, mageres Kleinfleisch | C2: 30 | D2: 1.680672269 | E2: =C2*$D$2/100 -> 0.5042016807 | G2: Alles getrennt faschieren, mageres gemeinsam mit der Zwiebel mit 3mm-Scheibe, Bauch 4,5mm
B3: Rindfleisch, mager | C3: 15 | E3: =C3*$D$2/100 -> 0.2521008403
B4: Bauchfleisch, ohne Schwarte, ohne Knochen | C4: 35 | E4: 0.5882352941
B5: Emmentaler | C5: 20 | E5: =C5*$D$2/100 -> 0.3361344538
B6: Fleischanteil gesamt | C6: =SUM(C2:C5) -> 100 | E6: =SUM(E2:E5) -> 1.680672269 | G6: Magerfleisch mit Gewürzen in der Küchenmaschine mengen, allmählich Schüttung zugeben, zuletzt das Bauchfleisch untermengen. Käsewürfel von Hand einmengen.
A7: Wasser | B7: Eis (Schüttung) | C7: 15 | E7: 0.2521008403 | F7: =_xlfn.TEXTJOIN(" ",,"Ergibt insgesamt:",E19, "kg") -> Ergibt insgesamt: 2,00336134453782 kg
B8: Gesamtausbeute, etwa | E8: =E6+E7 -> 1.932773109
A9: Gewürze | B9: Gewürze | C9: Angabe in g/kg | E9: Menge in g
B10: Pökelsalz | C10: 21 | E10: =C10*$D$2 -> 35.29411765 | G10: Füllen in Därme 28/32, abdrehen, 24 Stunden bei Raumluft trocknen lassen.
B11: Pfeffer | C11: 4 | E11: =C11*$D$2 -> 6.722689076
B12: Paprika, edelsüß | C12: 4 | E12: =C12*$D$2 -> 6.722689076
B13: Muskat | C13: 2 | E13: 3.361344538
B14: Knoblauchpulver | C14: 1 | E14: 1.680672269 | G14: Tags darauf bei 45°eine Stunde im Räucherofen weiter trocknen, danach bei 70-75° eine Stunde heiß räuchern.
B15: Maggiwürze | C15: 5 | E15: 8.403361345 | G15: 35 Minuten bei 78° brühen, abschrecken und auskühlen lassen.
B16: Brätphosphat | C16: 4 | E16: 6.722689076
B17: Zwiebel (Stück) | C17: 1 | E17: 1.680672269
A19: Ausbeute bei Grundansatz(1): 1,19 kg | E19: =SUM(E8)+SUM(E10:E17)/1000 -> 2.003361345 | F19: Ansatz erforderlich
A20: Erforderlicher Ansatz für die gewünschte Ausbeute in kg: | E20: 2 | F20: =E20/1.19 -> 1.680672269

Sheet Bratwürstel
B1: Zutaten | C1: Prozentualer Anteil | D1: Ansatz | E1: Menge in kg | F1: 1 | G1: Produktion
A2: Fleisch | B2: Schweineschulter, mageres Kleinfleisch | C2: 50 | D2: 1 | E2: =C2*$D$2/100 -> 0.5 | G2: Alles getrennt faschieren, mageres mit 3mm-Scheibe, Bauch 4,5mm
B3: Bauchfleisch, ohne Schwarte, ohne Knochen | C3: 50 | E3: =C3*$D$2/100 -> 0.5
B4: Fleischanteil gesamt | C4: =SUM(C2:C3) -> 100 | E4: =SUM(E2:E3) -> 1 | G4: Faschierte Schulter mit Nitritpökelsalz cuttern oder ein 2. Mal faschieren, mit Schüttung bis 12°
A5: Wasser | B5: Eis (Schüttung) | C5: 20 | E5: 0.2 | F5: =_xlfn.TEXTJOIN(" ",,"Ergibt insgesamt:",E20, "kg") -> Ergibt insgesamt: 1,2455 kg
B6: Gesamtausbeute, etwa | E6: =E4+E5 -> 1.2
A7: Gewürze | C7: Angabe in g/kg | E7: Menge in g
B8: Kochsalz | C8: 10 | E8: =C8*$D$2 -> 10 | G8: Feinbrät mit faschiertem Fettfleisch und Gewürzen vermengen, wahlweise von Hand oder in Küchenmaschine
B9: Pökelsalz | C9: 10 | E9: =C9*$D$2 -> 10
B10: Pfeffer, schwarz, geschrotet | C10: 4 | E10: =C10*$D$2 -> 4
B11: Majoran | C11: 1 | E11: 1
B12: Thymian | C12: 0.5 | E12: 0.5 | G12: Füllen in Därme 28/32
B13: Koriander | C13: 0.5 | E13: 0.5
B14: Knoblauch granuliert | C14: 3.5 | E14: 3.5
B15: Kümmel, gemahlen | C15: 2 | E15: 2
B16: Brätphosphat | C16: 4 | E16: 4
B17: Erdäpfelstärke | C17: 10 | E17: 10 | G17: Abdrehen
B18: Zitronenschale, gerieben | C18: nach Geschmack | E18: =SUM(E8:E16)/1000 -> 0.0355 | G18: zum Trocknen aufhängen
A20: Ausbeute bei Grundansatz(1): 1,25 kg | E20: =SUM(E6)+SUM(E8:E17)/1000 -> 1.2455 | F20: Ansatz erforderlich
A21: Erforderlicher Ansatz für die gewünschte Ausbeute in kg: | E21: 7 | F21: =E21/1.25 -> 5.6
B30: 18g Kochsalz 4g Pfeffer weiß 1g Kümmel gemahlen 3g Kümmel gestoßen 2g Muskat 4g Kutterhilfsmittel (je nach Herstellerangabe)

Sheet Bratwurst Walter
B1: Zutaten | C1: Prozentualer Anteil | D1: Ansatz | E1: Menge in kg | F1: 1 | G1: Produktion
A2: Fleisch | B2: Schweineschulter, mageres Kleinfleisch | C2: 40 | D2: 2 | E2: =C2*$D$2/100 -> 0.8 | G2: Alles getrennt faschieren, mageres mit 3mm-Scheibe, Bauch 4,5mm
B3: Bauchfleisch, ohne Schwarte, ohne Knochen | C3: 60 | E3: =C3*$D$2/100 -> 1.2
B4: Fleischanteil gesamt | C4: =SUM(C2:C3) -> 100 | E4: =SUM(E2:E3) -> 2 | G4: Eis in der Küchenmaschine vorlegen, mit Feinbrät und Gewürzen mengen (Paddel).
A5: Wasser | B5: Eis (Schüttung) | C5: 20 | E5: 0.4 | F5: =_xlfn.TEXTJOIN(" ",,"Ergibt insgesamt:",E20, "kg") -> Ergibt insgesamt: 2,492 kg
B6: Gesamtausbeute, etwa | E6: =E4+E5 -> 2.4
A7: Gewürze | C7: Angabe in g/kg | E7: Menge in g
B8: Kochsalz | C8: 20 | E8: =C8*$D$2 -> 40 | G8: Fettfleieisch zugeben, mengen (Knethaken).
B9: Pfeffer, schwarz, geschrotet | C9: 4 | E9: =C9*$D$2 -> 8
B10: Majoran | C10: 1 | E10: 2
B11: Macis | C11: 0.5 | E11: 1 | G11: Füllen in Därme 28/32
B12: Koriander | C12: 0.5 | E12: 1
B13: Knoblauch granuliert | C13: 3.5 | E13: 7
B14: Kümmel, gemahlen | C14: 2 | E14: 4
B15: Piment | C15: 0.5 | E15: 1
B16: Brätphosphat | C16: 4 | E16: 8
B17: Erdäpfelstärke | C17: 10 | E17: 20 | G17: Abdrehen
B18: Zitronenschale, gerieben | C18: nach Geschmack | E18: =SUM(E8:E16)/1000 -> 0.072 | G18: zum Trocknen aufhängen, paarweise ablängen
A20: Ausbeute bei Grundansatz(1): 1,25 kg | E20: =SUM(E6)+SUM(E8:E17)/1000 -> 2.492 | F20: Ansatz erforderlich
A21: Erforderlicher Ansatz für die gewünschte Ausbeute in kg: | E21: 2 | F21: =E21/1.25 -> 1.6

Sheet Fränkische Bratwurst
B1: Zutaten | C1: Prozentualer Anteil | D1: Ansatz | E1: Menge in kg | F1: Vorbereitung (Tag 1) | G1: Produktion (Tag 2)
A2: Fleisch | B2: Schweineschulter, mageres Kleinfleisch | C2: 40 | D2: 2 | E2: =C2*$D$2/100 -> 0.8 | F2: Fleisch in Stücke schneiden, kühlen | G2: Gewürze über dem Fleisch verteilen, mengen
B3: Bauchfleisch, ohne Schwarte, ohne Knochen | C3: 60 | E3: =C3*$D$2/100 -> 1.2
B4: Fleischanteil gesamt | C4: =SUM(C2:C3) -> 100 | E4: =SUM(E2:E3) -> 2 | G4: Durch 4,5mm-Scheibe faschieren
B5: Gesamtausbeute, etwa | E5: =E4 -> 2
A6: Gewürze | C6: Angabe in g/kg | E6: Menge in g
B7: Kochsalz | C7: 18 | E7: =C7*$D$2 -> 36 | G7: Etwa 10 Minuten in der Küchenmaschine durcharbeiten
B8: Pfeffer, schwarz, geschrotet | C8: 4 | E8: =C8*$D$2 -> 8
B9: Majoran | C9: 3 | E9: 6
B10: Ingwer | C10: 1 | E10: 2 | G10: Füllen in Därme 28/30 oder Bändel mit Abstand!
B11: Muskat | C11: 2 | E11: 4
B12: (Zitronenschale, gerieben) | C12: nach Geschmack | E12: =SUM(E7:E11)/1000 -> 0.056 | G12: Vereinzeln, nicht abdrehen! Braten oder grillen.
A14: Ausbeute bei Grundansatz(1): 1,03 kg | E14: =SUM(E5)+SUM(E7:E11)/1000 -> 2.056 | F14: Ansatz erforderlich
A15: Erforderlicher Ansatz für die gewünschte Ausbeute in kg: | E15: 2 | F15: =E15/1.03 -> 1.941747573

Sheet Nürnberger Rostbratwürste
B1: Zutaten | C1: Prozentualer Anteil | D1: Ansatz | E1: Menge in kg | F1: 1 | G1: Produktion
A2: Fleisch | B2: Schweineschulter, mageres Kleinfleisch | C2: 40 | D2: 1 | E2: =C2*$D$2/100 -> 0.4 | G2: Alles getrennt faschieren, mageres mit 3mm-Scheibe und Zwiebel, Bauch extra 4,5mm
B3: Bauchfleisch, ohne Schwarte, ohne Knochen | C3: 60 | E3: =C3*$D$2/100 -> 0.6
B4: Fleischanteil gesamt | C4: =SUM(C2:C3) -> 100 | E4: =SUM(E2:E3) -> 1 | G4: Schüttung (Küchenmaschine) zur Kühlung vorlegen, faschierte Schulter/Zwiebel mit Salz und Gewürzen durchmengen
A5: Wasser | B5: Eis (Schüttung) | C5: 15 | E5: =C5*$D$2/100 -> 0.15 | F5: =_xlfn.TEXTJOIN(" ",,"Ergibt insgesamt:",E18, "kg") -> Ergibt insgesamt: 1,1845 kg
B6: Gesamtausbeute, etwa | E6: =E4+E5 -> 1.15
A7: Gewürze | C7: Angabe in g/kg | E7: Menge in g
B8: Kochsalz | C8: 20 | E8: =C8*$D$2 -> 20 | G8: Grob Faschiertes zugeben, weiter mengen, Majoran erst zum Ende hin zugeben
B9: Pfeffer, weiß | C9: 4 | E9: =C9*$D$2 -> 4
B10: Ingwer | C10: 2 | E10: 2
B11: Muskat | C11: 2 | E11: 2 | G11: Füllen in Schafseitlinge 18/20, auf 7cm abdrehen.
B12: Piment | C12: 1 | E12: 1
B13: Majoran | C13: 2 | E13: 2
B14: Zwiebel (1/2 je kg) | C14: 0.5 | E14: 0.5
B15: Brätphosphat | C15: 3 | E15: 3
B16: Zitronenschale, gerieben | C16: nach Geschmack | E16: =SUM(E8:E15)/1000 -> 0.0345 | G16: Brühen 25 Minuten bei 78°, abschrecken.
A18: Ausbeute bei Grundansatz(1): 1,18 kg | E18: =SUM(E6)+SUM(E8:E15)/1000 -> 1.1845 | F18: Ansatz erforderlich
A19: Erforderlicher Ansatz für die gewünschte Ausbeute in kg: | E19: 4 | F19: =E19/1.18 -> 3.389830508

Sheet Thüringer Bratwurst
B1: Zutaten | C1: Prozentualer Anteil | D1: Ansatz | E1: Menge in kg | F1: 1 | G1: Produktion
A2: Fleisch | B2: Schweineschulter, mageres Kleinfleisch | C2: 30 | D2: 1.680672269 | E2: =C2*$D$2/100 -> 0.5042016807 | F2: Feinbestandteile | G2: Alles getrennt faschieren, 3mm-Scheibe
B3: Speck | C3: 10 | E3: =C3*$D$2/100 -> 0.1680672269
B4: Bauchfleisch, ohne Schwarte, ohne Knochen | C4: 60 | E4: =C4*$D$2/100 -> 1.008403361 | F4: Grobeinlage | G4: mit 4,5mm faschieren
B5: Fleischanteil gesamt | C5: =SUM(C2:C4) -> 100 | E5: =SUM(E2:E4) -> 1.680672269 | G5: Schulter und Speck mit der Hälfte der Gewürze in der Küchenmaschine mengen, allmählich Schüttung zugeben. (Paddel)
A6: Wasser | B6: Eis (Schüttung) | C6: 15 | E6: 0.2521008403 | F6: =_xlfn.TEXTJOIN(" ",,"Ergibt insgesamt:",E18, "kg") -> Ergibt insgesamt: 1,99327731092437 kg
B7: Gesamtausbeute, etwa | E7: =E5+E6 -> 1.932773109
A8: Gewürze | C8: Angabe in g/kg | E8: Menge in g
B9: Kochsalz | C9: 20 | E9: =C9*$D$2 -> 33.61344538 | G9: Rest der Gewürze + weitere Schüttung, etwa 10 Minuten mengen.
B10: Pfeffer, schwarz | C10: 4 | E10: =C10*$D$2 -> 6.722689076
B11: Kümmel, gemahlen | C11: 1 | E11: 1.680672269
B12: Kümmel, gestoßen | C12: 3 | E12: 5.042016807 | G12: Grobbestandteile zugeben, auf Knethaken wechseln, von Hand nachkneten
B13: Muskat | C13: 3 | E13: 5.042016807
B14: Zwiebelpulver | C14: 1 | E14: 1.680672269
B15: Brätphosphat | C15: 4 | E15: 6.722689076
E16: =SUM(E9:E15)/1000 -> 0.06050420168 | G16: In Schweinedarm 28/30 füllen, Raum zwischen den Würsten lassen, vereinzeln, kühlen.
A18: Ausbeute bei Grundansatz(1): 1,19 kg | E18: =SUM(E7)+SUM(E9:E15)/1000 -> 1.993277311 | F18: Ansatz erforderlich
A19: Erforderlicher Ansatz für die gewünschte Ausbeute in kg: | E19: 2 | F19: =E19/1.19 -> 1.680672269

Sheet Salami
B1: Zutaten | C1: Prozentualer Anteil | D1: Ansatz | E1: Menge in kg | F1: 1 | G1: Produktion
A2: Fleisch | B2: Schweineschulter, fett | C2: 80 | D2: 1 | E2: =C2*$D$2/100 -> 0.8 | G2: Alles getrennt faschieren, mit 9mm-Scheibe, Fleisch bereits gewürzt
B3: Rückenspeck | C3: 20 | E3: =C3*$D$2/100 -> 0.2
B4: Fleischanteil gesamt | C4: =SUM(C2:C3) -> 100 | E4: =SUM(E2:E3) -> 1 | G4: Mischen, kühlen auf 0°
A5: Gewürze | C5: Angabe in g/kg | E5: Menge in g
B6: Kochsalz/Meersalz | C6: 30 | E6: =C6*$D$2 -> 30 | G6: Kultur einarbeiten, füllen.
B7: Pökelsalz | C7: 4 | E7: =C7*$D$2 -> 4
B8: Pfeffer, schwarz, geschrotet | C8: 2 | E8: =C8*$D$2 -> 2
B9: Rotwein | C9: 30 | E9: 30
B10: Starterkulturen n. A., in Aqua Dest. gelöst | C10: 0.1 | E10: =C10*$D$2 -> 0.1 | G10: Rinderdärme abbinden, 24 h bei Zimmertemperatur, dann Trocknen bei 7°
B11: Schimmelpilzkultur, fakultativ | C11: 0.1 | E11: 0.1
A13: Ausbeute bei Grundansatz(1): 1,07 kg | E13: =E4+SUM(E6:E11)/1000 -> 1.0662 | F13: Ansatz erforderlich | G13: Ansatz erforderlich
A14: Erforderlicher Ansatz für die gewünschte Ausbeute in kg: | E14: 1 | F14: =E14/1.07 -> 0.9345794393 | G14: =E14/1.07 -> 0.9345794393

Sheet Ungarische Salami
B1: Zutaten | C1: Prozentualer Anteil | D1: Ansatz | E1: Menge in kg | F1: Vorbereitung | G1: Produktion
A2: Fleisch | B2: Schweineschulter, mager | C2: 72 | D2: 1 | E2: =C2*$D$2/100 -> 0.72 | F2: Vorpökeln 2 Tage, schräg lagern! | G2: Ausgetreten Fleischsaft verwerfen!
B3: Rückenspeck | C3: 28 | E3: =C3*$D$2/100 -> 0.28 | F3: vorfrieren, dann schneiden
B4: Fleischanteil gesamt | C4: =SUM(C2:C3) -> 100 | E4: =SUM(E2:E3) -> 1 | G4: Fleisch faschieren mit 8mm-Scheibe, Speck extra.
A5: Gewürze | C5: Angabe in g/kg | E5: Menge in g
B6: Pökelsalz | C6: 28 | E6: =C6*$D$2 -> 28 | G6: Entweder cuttern auf 0,5mm, dabei Starterkultur und Gewürze zugeben, alternativ die Masse ein 2. Mal durch 3mm-Scheibe faschieren.
B7: Pfeffer, schwarz, geschrotet | C7: 1.5 | E7: =C7*$D$2 -> 1.5
B8: Staubzucker | C8: 2 | E8: 2
B9: Knoblauchgranulat | C9: 1 | E9: 1 | G9: Därme? abbinden, 24 h bei Zimmertemperatur, dann Trocknen bei 7°. Luftfeuchte von 94% fallend, auch Temperatur zurücknehmen. Zuletzt bei 12°, 70%
B10: Starterkulturen n. A., in Aqua Dest. gelöst | C10: 0.1 | E10: 0.1
B11: Schimmelpilzkultur, fakultativ | C11: 0.1 | E11: 0.1
A13: Ausbeute bei Grundansatz(1): 1,03 kg | E13: =E4+SUM(E6:E11)/1000 -> 1.0327 | F13: Ansatz erforderlich
A14: Erforderlicher Ansatz für die gewünschte Ausbeute in kg: | E14: 2 | F14: =E14/1.03 -> 1.941747573

Sheet Salsiccia Cinghiale
B1: Zutaten | C1: Prozentualer Anteil | D1: Ansatz | E1: Menge in kg | F1: Vorbereitung | G1: Produktion
A2: Fleisch | B2: Wildschweinfleisch | C2: 60 | D2: 1 | E2: =C2*$D$2/100 -> 0.6 | F2: Antauen, grob würfeln | G2: Mit Gewürzen mischen, durch 12mm-Scheibe faschieren, min. 8h kühlen
B3: Schweineschulter | C3: 20 | E3: =C3*$D$2/100 -> 0.2 | F3: grob würfeln
B4: Rückenspeck | C4: 20 | E4: =C4*$D$2/100 -> 0.2 | F4: vorfrieren, dann grob schneiden | G4: Separat faschieren, kühlen.
B5: Fleischanteil gesamt | C5: =SUM(C2:C4) -> 100 | E5: =SUM(E2:E4) -> 1 | G5: Beides Vermengen, dann durch 4,5 oder 6mm-Scheibe faschieren,
A6: Gewürze | C6: Angabe in g/kg | E6: Menge in g
B7: Pökelsalz | C7: 3.2 | E7: =C7*$D$2 -> 3.2 | G7: In Küchenmaschine geben, Wein einarbeiten, zuletzt aufgelöste Starterkulturen.
B8: Meersalz | C8: 30 | E8: =C8*$D$2 -> 30
B9: Dextrose | C9: 4 | E9: 4
B10: Peffer | C10: 2.8 | E10: 2.8 | G10: Kühl und zügig arbeiten
B11: Koriander | C11: 4 | E11: 4 | G11: In Därme (Kunst- oder Rinder-) füllen.
B12: Cayennepfeffer | C12: 2 | E12: 2 | G12: Därme? abbinden, 24 h bei Zimmertemperatur, dann Trocknen bei 27°. Luftfeuchte von 94% fallend, auch Temperatur zurücknehmen. Zuletzt bei 12°, 70%
B13: Macis, gemahlen | C13: 1.6 | E13: 1.6
B14: Trockener Weißwein | C14: 50 | E14: 50
B15: Starterkulturen n. A., in Aqua Dest. gelöst | C15: 0 | D15: Dos | E15: 0
B16: Schimmelpilzkultur, fakultativ | C16: 0 | D16: Dos | E16: 0
A18: Ausbeute bei Grundansatz(1): 1,10 kg | E18: =E5+SUM(E7:E16)/1000 -> 1.0976 | F18: Ansatz erforderlich
A19: Ansatz für die gewünschte Ausbeute in kg: | E19: 3.5 | F19: =E19/1.1 -> 3.181818182

Sheet Zwiebelmettwurst
B1: Zutaten | C1: Prozentualer Anteil | D1: Ansatz | E1: Menge in kg | F1: Vorbereitung | G1: Produktion
A2: Fleisch | B2: Schweineschulter, mager | C2: 50 | D2: 1 | E2: =C2*$D2/100 -> 0.5
B3: Bauchfleisch ohne Schwarte und Knorpel | C3: 50 | E3: =C3*$D2/100 -> 0.5
B4: Fleischanteil gesamt | C4: =SUM(C2:C3) -> 100 | E4: =SUM(E2:E3) -> 1 | G4: Fleisch faschieren mit 3mm-Scheibe
A5: Gewürze | C5: Angabe in g/kg | E5: Menge in g
B6: Pökelsalz | C6: 26 | E6: =C6*$D$2 -> 26 | G6: Masse mit Gewürzen von Hand durchkneten, etwa 5 Minuten
B7: Pfeffer, schwarz, geschrotet | C7: 5 | E7: =C7*$D$2 -> 5
B8: Dextrose | C8: 6 | E8: 6
B9: Zwiebelgranulat | C9: 15 | E9: 15 | G9: Abfüllen in Sterildärme, Abbinden. 24 Stunden bei Zimmertemperatur, dann 5 Tage im Kühlschrank reifen lassen
B10: Ingwer | C10: 1 | E10: 1
B11: Muskat | C11: 1.5 | E11: 1.5
B12: Starterkulturen | C12: 1 | E12: 1
A14: Ausbeute bei Grundansatz(1): 1,06 kg | E14: =E4+SUM(E6:E12)/1000 -> 1.0555 | F14: Ansatz erforderlich
A15: Erforderlicher Ansatz für die gewünschte Ausbeute in kg: | E15: 1.5 | F15: =E15/1.0555 -> 1.421127428

Sheet Chorizo
B1: Zutaten | C1: Prozentualer Anteil | D1: Ansatz | E1: Menge in kg | F1: Vorbereitung | G1: Produktion
A2: Fleisch | B2: Schweinsschopf | C2: 50 | D2: 2.16 | E2: =C2*$D$2/100 -> 1.08 | F2: Schneiden, mit Gewürzen vermengen, zuletzt Rotwein einarbeiten (von Hand) | G2: Durch 8mm-Scheibe faschieren
B3: Bauchfleisch | C3: 50 | E3: =C3*$D$2/100 -> 1.08
B4: Fleischanteil gesamt | C4: =SUM(C2:C3) -> 100 | E4: =SUM(E2:E3) -> 2.16 | G4: Von Hand kneten
A5: Gewürze | C5: Angabe in g/kg | E5: Menge in g
B6: Pökelsalz | C6: 24 | E6: =C6*$D$2 -> 51.84 | G6: Füllen in 28/30 Schweinedarm
B7: Pfeffer, schwarz, geschrotet | C7: 4 | E7: =C7*$D$2 -> 8.64
B8: Muskat | C8: 2 | E8: 4.32
B9: Knoblauchgranulat | C9: 2 | E9: 4.32 | G9: Abdrehen
B10: Paprika, edelsüß | C10: 20 | E10: 43.2 | G10: Trocknen bei 18°C, etwa 20 Tage
B11: Chilipulver | C11: 0.3 | E11: 0.648 | G11: Serviervorschlag: in Scheiben schneiden, auf Holzspieße stecken, diese über Tapasschalen legen, etwas Weingeist hineingeben und anzünden, Spieße gelegentlich drehen.
B12: Ascorbinsäure | C12: 1 | E12: 2.16
B13: Dextrose | C13: 3 | E13: 6.48
B14: Rotwein, trocken | C14: 40 | E14: 86.4
A16: Ausbeute bei Grundansatz(1): 1,10 kg | E16: =E4+SUM(E6:E14)/1000 -> 2.368008 | F16: Ansatz erforderlich
A17: Erforderlicher Ansatz für die gewünschte Ausbeute in kg: | E17: 2.37 | F17: =E17/1.1 -> 2.154545455

Sheet Mortadella
B1: Zutaten | C1: Prozentualer Anteil | D1: Ansatz | E1: Menge in kg | F1: Vorbereitung | G1: Produktion
A2: Fleisch | B2: Schweineschulter, mager | C2: 60 | D2: 3 | E2: =C2*$D$2/100 -> 1.8 | G2: getrennt faschieren durch 3mm-Scheibe
B3: Rückenspeck | C3: 20 | E3: =C3*$D$2/100 -> 0.6
B4: Rückenspeck, gewürfelt | C4: 20 | E4: =C4*$D$2/100 -> 0.6 | F4: vorfrieren, dann schneiden | G4: nach dem Schneiden überbrühen, auskühlen lassen.
B5: Fleischanteil gesamt | C5: =SUM(C2:C4) -> 100 | E5: =SUM(E2:E4) -> 3 | G5: zuerst Fleisch mit Gewürzen und der halben Schüttung cuttern, dann Speck und restliche Schüttung dazu, bis 12° cuttern.
B6: Schüttung | C6: 22 | E6: =C6*$D$2/100 -> 0.66
A7: Gewürze | C7: Angabe in g/kg | E7: Menge in g
B8: Pökelsalz | C8: 20 | E8: =C8*$D$2 -> 60 | G8: Pistazien und Speckwürfel untermengen. In Kunstdarm füllen.
B9: Pfeffer, weiß | C9: 4 | E9: =C9*$D$2 -> 12
B10: Ingwer | C10: 2 | E10: 6
B11: Muskat | C11: 3 | E11: 9 | G11: bei 78° 90 Minuten brühen, abschrecken, auskühlen lassen
B12: Cutterhilfsmittel | C12: 4 | E12: 12
B13: Pistazien | C13: 8 | E13: 24
A15: Ausbeute bei Grundansatz(1): 1,26 kg | E15: =E5+E6+SUM(E8:E13)/1000 -> 3.783 | F15: Ansatz erforderlich
A16: Erforderlicher Ansatz für die gewünschte Ausbeute in kg: | E16: 2 | F16: =E16/1.26 -> 1.587301587

Sheet Mortadella 2
B1: Zutaten | C1: Prozentualer Anteil | D1: Automatischer Ansatz mit Berechnung auf Grundbrätbasis | E1: Ansatz | F1: Menge automatisch | G1: Menge in kg | H1: Vorbereitung | I1: Produktion
A2: Fleisch | B2: Aufschnitt-Grundbrät | C2: 100 | D2: ='Aufschnitt-Grundbrät'!D2 -> 3.349514563 | E2: 3.45 | F2: =C2*$D$2/100 -> 3.349514563 | G2: =C2*$E$2/100 -> 3.45 | H2: nach Rezeptur herstellen | I2: Pistazien und gebrühte Speckwürfel untermengen (Küchenmaschine). Prall in braunen Kunstdarm 90/50 füllen.
A3: Einlage | C3: Angabe in g/kg | G3: Menge in g
B4: Rückenspeck, gewürfelt S8 | C4: 150 | F4: =C4*$D$2 -> 502.4271845 | G4: =C4*$E$2 -> 517.5 | H4: Speck nach dem Schneiden brühen, abschrecken | I4: 90 Minuten bei 80° brühen, abschrecken, dann in die Kühlung.
B5: Pistazien, gehackt | C5: 10 | F5: =C5*$D$2 -> 33.49514563 | G5: =C5*$E$2 -> 34.5
A7: Ausbeute bei Grundansatz(1): 1,16 kg | F7: =F2+SUM(F4:F5)/1000 -> 3.885436893 | G7: =G2+SUM(G4:G5)/1000 -> 4.002 | H7: Ansatz erforderlich
A8: Erforderlicher Ansatz für die gewünschte Ausbeute in kg: | G8: 4 | H8: =G8/1.16 -> 3.448275862
D16: Beidseitiger Druck der Rezeptur mit Grundbrät

Sheet Aufschnitt-Grundbrät
B1: Zutaten | C1: Prozentualer Anteil | D1: Ansatz | E1: Menge in kg | F1: Vorbereitung | G1: Produktion
A2: Fleisch | B2: Schweineschulter, mager S3 | C2: 40 | D2: 3.349514563 | E2: =C2*$D$2/100 -> 1.339805825 | F2: Alles wolfgerecht vorschneiden, vorkühlen | G2: getrennt faschieren durch 3mm-Scheibe
B3: Schweinebauch, ohne Schwarte S4b | C3: 20 | E3: =C3*$D$2/100 -> 0.6699029126
B4: Schweinebacken S6 | C4: 10 | E4: 0.3349514563
B5: Speckabschnitte S9 | C5: 10 | E5: 0.3349514563
B6: Schüttung | C6: 20 | E6: 0.6699029126 | G6: zuerst Fleisch mit Gewürzen und der halben Schüttung cuttern, dann Speck und restliche Schüttung dazu, bis 12° cuttern.
B7: Masse gesamt | C7: =SUM(C2:C6) -> 100 | D7: % | E7: =C7*$D$2/100 -> 3.349514563
A8: Gewürze | C8: Angabe in g/kg | E8: Menge in g
B9: Pökelsalz | C9: 18 | E9: =C9*$D$2 -> 60.29126214
B10: Phosphat | C10: 3 | E10: =C10*$D$2 -> 10.04854369
B11: Farbstabilisator | C11: 1 | E11: 3.349514563
B12: Pfeffer, gemahlen | C12: 2 | E12: 6.699029126
B13: Macis, gemahlen | C13: =0.5 -> 0.5 | E13: 1.674757282
B14: Koriander, gemahlen | C14: 0.5 | E14: 1.674757282
B15: Ingwer | C15: 0.3 | E15: 1.004854369
B16: Cardamom | C16: 0.2 | E16: 0.6699029126
B17: Paprika | C17: 0.2 | E17: 0.6699029126
B18: Glutamat | C18: 0.5 | E18: 1.674757282
E19: =SUM(E9:E18) -> 87.75728155
A20: Ausbeute bei Grundansatz(1): 1,03 kg | E20: =SUM(E2:E6)+SUM(E9:E18)/1000 -> 3.437271845 | F20: Ansatz erforderlich
A21: Erforderlicher Ansatz für die gewünschte Ausbeute in kg: | E21: 3.45 | F21: =E21/1.03 -> 3.349514563 | G21: Gehe zu Mortadella 2
